Cogmind - Beta 9.4 @@@ ROGUE MODE // 2020.02.07 @ 08:25:01 Player: Hamilcar Result: Self-destructed Performance ------------- Evolutions (1) 500 Regions Visited (2) 400 Robots Destroyed (14) 70 Value Destroyed (467) 467 Prototype IDs (0) 0 Alien Tech Used (0) 0 Bonus (0) 0 TOTAL SCORE: 1437 Bonus ------- None Cogmind --------- Core Integrity 183/400 Matter 300/300 Energy 12/100 System Corruption 0% Temperature Cool (385) Movement Treading (170) Location -9/Materials Parts ------- > --- POWER (1) -------- (None) > --- PROPULSION (2) --- Armored Treads Armored Treads > --- UTILITY (4) ------ Small Storage Unit Sensor Array Signal Interpreter > --- WEAPON (2) ------- EM Pulse Gun > --- INVENTORY (6) ---- Ion Engine Improved Ion Engine Structural Scanner Light Armor Plating Light Assault Rifle Peak State ------------ > --- POWER ------------ Ion Engine > --- PROPULSION ------- Armored Treads Armored Treads > --- UTILITY ---------- Small Storage Unit Sensor Array Signal Interpreter Improved Terrain Scanner > --- WEAPON ----------- Spread Laser Assault Rifle > --- INVENTORY -------- Ion Engine Light Treads Light Treads Structural Scanner EM Pulse Gun Spread Laser [Rating: 15] Favorites ----------- Power Ion Engine Engine Ion Engine Power Core Light Nuclear Core Propulsion Light Treads Treads Light Treads Utility Small Storage Unit Device Sensor Array Storage Small Storage Unit Processor Signal Interpreter Weapon Assault Rifle Energy Gun Spread Laser Ballistic Gun Assault Rifle Build | -11 -10 -9 ------- Run | Scr Mat Mat Slots Evolved 2 | . . 2 Power . | . . . Propulsion . | . . . Utility 2 | . . 2 Weapon . | . . . Parts Attached 18 | 6 5 7 Power 3 | 1 2 . Engine 2 | 1 1 . Core 1 | . 1 . Reactor . | . . . Propulsion 4 | 2 . 2 Treads 4 | 2 . 2 Leg . | . . . Wheel . | . . . Hover . | . . . Flight . | . . . Utility 4 | 1 1 2 Device 2 | . 1 1 Storage 1 | 1 . . Processor 1 | . . 1 Hackware . | . . . Protection . | . . . Artifact . | . . . Weapon 7 | 2 2 3 Energy Gun 4 | 1 1 2 Energy Cannon . | . . . Ballistic Gun 3 | 1 1 1 Ballistic Cannon . | . . . Launcher . | . . . Special Weapon . | . . . Impact Weapon . | . . . Slashing Weapon . | . . . Piercing Weapon . | . . . Special Melee Weapon . | . . . Unidentified Prototypes . | . . . Parts Lost 6 | . 1 5 Power 2 | . 1 1 Propulsion . | . . . Utility 1 | . . 1 Weapon 3 | . . 3 Highest Loss Streak 4 | . 1 4 Average Slot Usage (%) 95 | . 93 99 Engine 8 | . 7 10 Core 3 | . 6 . Treads 25 | . 28 21 Device 13 | . 7 22 Storage 12 | . 14 11 Processor 4 | . . 11 Energy Gun 12 | . 14 11 Ballistic Gun 12 | . 14 10 Naked Turns . | . . . Heaviest Build 16 | 10 15 16 Greatest Support 40 | 40 40 40 Greatest Overweight (x) 2 | 2 . . Average Overweight (x) . | . . . Largest Inventory Capacity 6 | 6 6 6 Average Capacity 5 | 5 6 6 Most Carried 6 | 4 6 6 Average Carried 5 | 2 5 5 Final Capacity 6 | 6 6 6 Final Carried 6 | 4 6 5 Class Distribution -------------------- 62% | Mutant 37% | Skirmisher Dominant Class ---------------- Mutant | -10/Materials Skirmisher | -9/Materials Resources | -11 -10 -9 ----------- Run | Scr Mat Mat Matter Collected 505 | 170 225 110 Remotely . | . . . Salvage Created 476 | . 258 218 Parts 32 | . 17 15 Haulers Intercepted . | . . . Recyclers Shooed . | . . . Parts Field Recycled . | . . . Retrieved Matter . | . . . Parts Self-Destructed . | . . . Prevented . | . . . Kills | -11 -10 -9 ------- Run | Scr Mat Mat Combat Hostiles Destroyed 13 | . 6 7 Guns 12 | . 6 6 AOE 1 | . . 1 Classes Destroyed 4 | . 2 2 Watcher 1 | . 1 . Swarmer 3 | . . 3 Grunt 8 | . 6 2 Sentry 2 | . . 2 Best Kill Streak 2 | . 2 2 Combat Bots Only 2 | . 2 2 Max Kills in Single Turn 1 | . 1 1 Gunslinging . | . . . Exploded 1 | . . 1 Melee . | . . . Uniques/NPCs Destroyed . | . . . Combat | -11 -10 -9 -------- Run | Scr Mat Mat Damage Taken 1384 | . 440 944 Core 284 | . 67 217 Absorbed by Shields . | . . . Core Remaining (%) 86 | 100 73 . Volleys Fired 62 | . 38 24 Largest 2 | . 2 2 Hottest 105 | . 85 105 Shots Fired 118 | . 73 45 Gun 118 | . 73 45 Cannon . | . . . Launcher . | . . . Special . | . . . Kinetic 57 | . 38 19 Thermal 57 | . 35 22 Explosive . | . . . Electromagnetic 4 | . . 4 Robot Hit Streak 14 | . 9 14 Robot Miss Streak 4 | . 4 3 Penetration Max . | . . . Secondary Targets 1 | . 1 . Max Gunslinging Chain 1 | . 1 . Shots Hit Robots 79 | . 53 26 Core Hits 43 | . 25 18 Critical Hits 1 | . 1 . Critical Kills . | . . . Critical Parts Destroyed 1 | . 1 . Melee Attacks . | . . . Impact . | . . . Slashing . | . . . Piercing . | . . . Sneak Attacks . | . . . Combat Hostiles . | . . . Follow-up Attacks . | . . . Damage Inflicted 922 | . 588 334 Guns 806 | . 588 218 Cannons . | . . . Explosions 116 | . . 116 Melee . | . . . Ramming . | . . . Kinetic 345 | . 262 83 Thermal 565 | . 326 239 Explosive . | . . . Electromagnetic 12 | . . 12 Impact . | . . . Slashing . | . . . Piercing . | . . . Highest Corruption . | . . . Average Corruption . | . . . Corruption Purged . | . . . Overload Shots . | . . . Overflow Damage . | . . . Projectiles . | . . . Explosions . | . . . Melee . | . . . Knockbacks . | . . . Impact . | . . . Kinetic . | . . . Secondary . | . . . Self-Inflicted Damage 46 | . . 46 Shots 1 | . . 1 Rammed 1 | . 1 . Targets Rammed 1 | . 1 . Kicked . | . . . Crushed . | . . . Highest Temperature 385 | . 188 385 Average Temperature 74 | . 65 89 Received Heat Transfer 657 | . 249 408 Siege Activations . | . . . Robots Corrupted . | . . . Combat Hostiles . | . . . Parts Fried . | . . . Impact Corruptions . | . . . Robots Melted . | . . . Combat Hostiles . | . . . Parts Melted . | . . . Heat Transferred 875 | . 615 260 Parts Sabotaged . | . . . Parts Stolen . | . . . Parts Stripped . | . . . Power Chain Reactions 1 | . . 1 Missiles Intercepted . | . . . Alert | -11 -10 -9 ------- Run | Scr Mat Mat Peak Influence 190 | . 137 190 Average Influence 72 | . 66 96 Maximum Alert Level . | . . . Low Security (%) 100 | 100 100 100 Level 1 . | . . . Level 2 . | . . . Level 3 . | . . . Level 4 . | . . . Level 5 . | . . . High Security . | . . . Max Security . | . . . Squads Dispatched 1 | . . 1 Investigation . | . . . Extermination . | . . . Reinforcement 1 | . . 1 Assault . | . . . Garrison . | . . . Intercept . | . . . Construction Impeded . | . . . Haulers Reinforced . | . . . Stealth | -11 -10 -9 --------- Run | Scr Mat Mat Distress Signals . | . . . Communications Jammed . | . . . Distress Signals . | . . . Times Spotted 23 | . 8 15 Peak Tracking Total 6 | . 2 6 Tactical Retreats 1 | . . 1 Traps | -11 -10 -9 ------- Run | Scr Mat Mat Traps Triggered . | . . . Indirectly . | . . . Trap Hack Attempts . | . . . Triggered . | . . . Disarmed . | . . . Reprogrammed . | . . . Reused . | . . . Traps Extracted . | . . . Installed . | . . . Triggered . | . . . Machines | -11 -10 -9 ---------- Run | Scr Mat Mat Machines Disabled 2 | . . 2 Max in Single Turn 1 | . . 1 Machines Sabotaged . | . . . Garrisons Compromised . | . . . Overloaded Fab Kills . | . . . Fab Network Shutdowns . | . . . Hacking | -11 -10 -9 --------- Run | Scr Mat Mat Machines Accessed . | . . . Terminals . | . . . Fabricators . | . . . Repair Stations . | . . . Recycling Units . | . . . Scanalyzers . | . . . Garrison Access . | . . . Total Hacks . | . . . Successful . | . . . Failed . | . . . Catastrophic . | . . . Database Lockouts . | . . . Manual . | . . . Terminals . | . . . Fabricators . | . . . Repair Stations . | . . . Recycling Units . | . . . Scanalyzers . | . . . Garrison Access . | . . . Terminal Hacks . | . . . Fabricator Hacks . | . . . Repair Station Hacks . | . . . Recycling Unit Hacks . | . . . Scanalyzer . | . . . Garrison Access Hacks . | . . . Unauthorized Hacks . | . . . Terminals . | . . . Fabricators . | . . . Repair Stations . | . . . Recycling Units . | . . . Scanalyzers . | . . . Garrison Access . | . . . Data Cores Recovered . | . . . Used . | . . . Hacking Detections . | . . . Full Trace Events . | . . . Feedback Events . | . . . Feedback Blocked . | . . . Robot Schematics Acquired . | . . . Robots Built . | . . . Matter . | . . . Time . | . . . Total Robot Build Rating . | . . . Part Schematics Acquired . | . . . Parts Built . | . . . Matter . | . . . Time . | . . . Total Part Build Rating . | . . . Parts Repaired . | . . . Time . | . . . Parts Recycled . | . . . Recycled Matter . | . . . Retrieved Matter . | . . . Retrieved Components . | . . . Parts Scanalyzed . | . . . Part Schematics Acquired . | . . . Parts Damaged . | . . . Bothacking | -11 -10 -9 ------------ Run | Scr Mat Mat Used RIF Installer . | . . . Robots Hacked . | . . . Non-combat . | . . . Combat . | . . . Robot Hacks Applied . | . . . Relay Couplers Released . | . . . Robots Rewired . | . . . Allies Hacked . | . . . Hacks Repelled . | . . . Allies | -11 -10 -9 -------- Run | Scr Mat Mat Total Allies . | . . . Largest Group . | . . . Highest-Rated Group . | . . . Highest-Rated Ally . | . . . Total Orders . | . . . Ally Attacks . | . . . Total Damage . | . . . Kills . | . . . Allies Corrupted . | . . . Allies Melted . | . . . Intel | -11 -10 -9 ------- Run | Scr Mat Mat Robot Analysis Total . | . . . Derelict Logs Recovered . | . . . Drone Launches . | . . . Drone Recoveries . | . . . Exploration | -11 -10 -9 ------------- Run | Scr Mat Mat Turns Passed 1116 | 84 601 431 Spaces Moved 444 | 47 229 168 Core 5 | 5 . . Treads 439 | 42 229 168 Legs . | . . . Wheels . | . . . Hover . | . . . Flight . | . . . Fastest Speed 50 | 50 160 160 Average Speed 163 | 153 160 169 Slowest Speed 170 | 160 160 170 Overloaded Moves . | . . . Propulsion Burnouts . | . . . Robots Hopped . | . . . Cave-ins Triggered . | . . . Exploration Rate (%) 17 | 4 35 14 Regions Visited 2 Branch Regions . Pre-discovered Areas . | . . . Known Exits Taken . | . . . Unknown Exits Taken 2 | 1 1 . Scrap Searched . | . . . Spaces Dug . | . . . Terrain Destroyed . | . . . Melee . | . . . Projectile . | . . . AOE . | . . . Actions | -11 -10 -9 --------- Run | Scr Mat Mat Total 719 | 56 392 271 Wait 168 | . 105 63 Move 442 | 46 228 168 Hop . | . . . Pick Up 15 | 4 7 4 Fast Attach 12 | 6 4 2 Attach 6 | . 1 5 Detach 3 | . 1 2 Swap . | . . . Drop 10 | . 7 3 Fire 62 | . 38 24 Melee . | . . . Ram . | . . . Kick . | . . . Crush 1 | . 1 . Escape Stasis . | . . . Rewire . | . . . Trap . | . . . Miscellaneous . | . . . Route ------- -11/Scrapyard -10/Materials -9/Materials History --------- Turn | Location | Event 14 | -11/Scrapyard | Discovered new exit (range 16) 85 | -11/Scrapyard | Entered Materials 311 | -10/Materials | Build established: Mutant 648 | -10/Materials | Discovered new exit (range 10) 686 | -10/Materials | Entered another Materials area 686 | -9/Materials | Evolved 2 slots: Utility x2 973 | -9/Materials | Build established: Skirmisher 1114 | -9/Materials | Core integrity fell below 50% 1117 | -9/Materials | Self-destructed Last Messages --------------- 00969_ Connecting with Recycling Unit... 00969_ Current location identified: Materials 00970_ R-06 Scavenger inserts Lgt. Armor Plating into recycling unit. 00973_ R-06 Scavenger inserts Lgt. Treads into recycling unit. 00988_ R-06 Scavenger collects Flight Unit. 00991_ R-06 Scavenger collects Lgt. Treads. 01037_ C-30 ARC bursts open, deploying its payload. 01037_ G-47 Trooper unfolds itself. 01037_ G-34 Mercenary unfolds itself. 01048_ K-01 Serf collects debris. 01054_ K-01 Serf cleans the Matter Pump. 01078_ G-34 Mercenary destroyed. 01102_ Lgt. Assault Rifle destroyed. 01104_ Ion Engine destroyed. 01107_ Atomic Centrifuge disabled. 01110_ Spread Laser destroyed. 01113_ Chain reaction triggered in Lgt. Nuclear Core. 01113_ G-34 Mercenary destroyed. 01113_ Scanalyzer disabled. 01114_ Imp. Terrain Scanner destroyed. Map ----- +----------------------------------------------------+ | ????????????????#????????????# #???? | | ????????????????????????#???## #???? | | ????????????????????????#?#### #??#? | | ???????????? ? ???????????#!! #???? | | ????????????????????????#?# #####?## | | ????????????? ?????#?#### ###?#??# | | ????????????? ? ?????# = #?##?? | | ????????????? ###### #??#?? | | ???????#????? #????# | | ???????? ?? ###### #?#??? | | ??????? ??? ???#????# #??#?? | | ????????" """ ?? ##??### ####### | | ??????"?" """ ##+####### # # | | ????? """ """ # # + # | | ??#??? # != # # # | | ?????? # + # # | | ???? ?""" """ # # # """ # | | ???# """ """ # * #= # """ # | | ???# """ """ # +%% + """ # | | ???# +% x= ##### # | | ???# # #?#?# # | | ????####### # #???# "Y" # | | ???????#?## ############?# """ # | | ######?#?# # gg #??# # | | ##### x# "" #??####### | | # " @#????????? | | +% " #????????? | | # !%g #????????? | | ##### # "S [ #???#????? | | ## ###???# # "" g ##???????# | | ?# ??##??######### "" #????????? | | ? ??????????##### #????????? | | ? ?????????????##########????????? | | ? ????????????##????##????????????? | | ????#???#??#??#???????#???????#???? | | ????????#?#???#?#? ????????????????? | | ????????????????#??? ?????#????????? | | ???????????????????????????????????? | | ??????????????????????? ???????????? | | ???????? ????????#??"???#?#????????? | | ????? ???????????? ??? ????????????? | | ???????????? ?????????????????????? | | ???????????????????????????????????? | | ???????????????????????????????????? | | ???????????????????????????????????? | | ???????????????????????????????????? | | ???????????????????????????????????? | | ???????????????????????????????????? | | ???????????????????????????????????? | | ???????????????????????????????????? | +----------------------------------------------------+ Best States ------------- Heat Dissipation 28 Energy Generation 14 Energy Capacity 250 Matter Stores 300 Matter Capacity 300 Sight Range 16 Robot Scan Range 10 Terrain Scan Range 16 Terrain Scan Density 10 Evasion (%) 40 Recoil Reduction 2 Item Schematics ----------------- None Robot Schematics ------------------ None Fabricated ------------ Nothing Alien Tech Used ----------------- None Achievements -------------- None Challenges ------------ None Game ------ Seed MiniBurstBooster Manual? 0 Play Time 00:15:45 Cumulative 39.1 hours Start 2020.02.07 @ 08:11:07 End 2020.02.07 @ 08:25:01 Sessions 1 Manual Loads 0 Difficulty Rogue Special Mode None Game No. 28 Rogue 28 Adventurer 0 Explorer 0 Win Type - Total 0 Types 0/0/0/0/0/0/0 Lore% 16 Gallery% 25 Achievement% 12 Wizard Run 0 Options --------- ASCII 0 Keyboard 1 Movement Vi Keybinds 0 Fullscreen 1 Font 18/SmallcapsGlow Map View 76x50 Tactical HUD 1 Map Filters NONE Filters NONE Steam 1 RUN: 6edc153b-2896-4f0a-8e4a-8d8320d742e0